Workbook

Sheet HOME
D1: 2022 | G1: كانون الثاني 2022
C2: كانون الثاني | D2: شباط | E2: آذار | G2: شباط 2022
C3: نيسان | D3: ايار | E3: حزيران | G3: آذار 2022
C4: تموز | D4: آب | E4: ايلول | G4: نيسان 2022
C5: تشرين الأول | D5: تشرين الثاني | E5: كانون الأول | G5: ايار 2022
D6: جدول الأشهر | G6: حزيران 2022
G7: تموز 2022
G8: آب 2022
G9: ايلول 2022
G10: تشرين الأول 2022
G11: تشرين الثاني 2022
G12: كانون الأول 2022

Sheet كانون الثاني 2022
A1: بنــــــــــــــــــــاية الضـــــــــــــــــــــــــحى
A2: كشف حساب المصعد و المبنى عن العام 2022 | J2: المصاريف
A3: الطابق | B3: الشهر: | C3: سباط -2022 | F3: بلوك A | G3: رابط الصفحات'!A1 | I3: كانون الثاني 2022 | J3: راتب الناطور/ أبو ضياء
B4: الإيرادات | D4: المصاريف | I4: شباط 2022 | J4: مواد تنظيف
B5: الإسم | C5: المبلغ | D5: المصاريف | E5: الشرح | I5: آذار 2022 | J5: فاتورة كهرباء
B6: احمد غانم | C6: ='جدول الأشهر-2022'!C4 -> 35000 | D6: 125000 | E6: راتب الناطور/ أبو ضياء | I6: نيسان 2022 | J6: صيانة المصعد
A7: 5 | B7: احمد يحيا | C7: ='جدول الأشهر-2022'!C5 -> 0 | D7: 10500 | E7: مواد تنظيف | G7: المرحوم طلال بدر | I7: ايار 2022 | J7: قطع غيار
B8: خليل هواري | C8: ='جدول الأشهر-2022'!C6 -> 30000 | D8: 75000 | E8: بذمة الناطورالذي استلم من رياض و ترك فجأة | I8: حزيران 2022 | J8: صيانة المولد
B9: عباس كوراني | C9: ='جدول الأشهر-2022'!C7 -> 35000 | D9: 9000 | E9: مكنسة مع عصا | G9: المرحوم زكي حمادي | I9: تموز 2022 | J9: صيانة المجارير و الصحية
A10: 4 | B10: هاني بري | C10: ='جدول الأشهر-2022'!C8 -> 0 | D10: 169000 | E10: احمد يحيا - فواتير صيانة كهرباء | G10: ليلى نور الدين/ ابوهاشم | I10: آب 2022 | J10: مازوت/للمولد
B11: شوقي فقية | C11: ='جدول الأشهر-2022'!C9 -> 35000 | I11: ايلول 2022 | J11: انارة / لمبات
B12: د بلان حمية | C12: ='جدول الأشهر-2022'!C10 -> 0 | I12: تشرين الأول 2022 | J12: دهان
A13: 3 | B13: عبداللة هرمناني | C13: ='جدول الأشهر-2022'!C11 -> 35000 | I13: تشرين الثاني 2022
B14: فؤاد إسماعيل | C14: ='جدول الأشهر-2022'!C12 -> 35000 | I14: كانون الأول 2022
B15: علي المولى | C15: ='جدول الأشهر-2022'!C13 -> 35000 | G15: شقة الحاج سميح هيدوس | I15: جدول الأشهر
A16: 2 | B16: علي كركي | C16: ='جدول الأشهر-2022'!C14 -> 35000
B17: محمد صفي الدين | C17: ='جدول الأشهر-2022'!C15 -> 35000
B18: خليل شلهوب | C18: ='جدول الأشهر-2022'!C16 -> 25000 | G18: ابراهيم ابو ملحم
A19: 1 | B19: اسامة زين الدين | C19: ='جدول الأشهر-2022'!C17 -> 25000
B20: احمد حرب | C20: ='جدول الأشهر-2022'!C18 -> 25000
A21: ارضي | C21: ='جدول الأشهر-2022'!C19 -> 25000 | G21: حسن عواضة
A22: ايراد المحلات | B22: الفرن | C22: ='جدول الأشهر-2022'!C20 -> 0
A24: المجموع | C24: =SUM(C6:C23) -> 410000 | D24: =SUM(D6:D23) -> 388500 | E24: رصيد الشهر | F24: =C24-D24 -> 21500
E25: الرصيد السابق | F25: 65750
E26: اجمالي الرصيد | F26: =F24+F25 -> 87250
C27: =NumberToText(F26,"ليرة لبنانية","ليرة") -> 
A28: التوقيع: | D28: التوقيع:

Sheet شباط 2022
A1: بنــــــــــــــــــــاية الضـــــــــــــــــــــــــحى
A2: كشف حساب المصعد و المبنى عن العام 2022
A3: الطابق | B3: الشهر: | C3: سباط -2022 | F3: بلوك A | G3: رابط الصفحات'!A1 | I3: كانون الثاني 2022
B4: الإيرادات | D4: المصاريف | I4: شباط 2022
B5: الإسم | C5: المبلغ | D5: المصاريف | E5: الشرح | I5: آذار 2022
B6: احمد غانم | C6: ='جدول الأشهر-2022'!D4 -> 35000 | D6: 125000 | E6: راتب الناطور/ أبو ضياء | I6: نيسان 2022
A7: 5 | B7: احمد يحيا | C7: ='جدول الأشهر-2022'!D5 -> 0 | D7: 2500 | E7: مواد تنظيف | G7: طلال بدر | I7: ايار 2022
B8: خليل هواري | C8: ='جدول الأشهر-2022'!D6 -> 30000 | D8: 281500 | E8: بدل صيانة غرفة الناطور فواتير 6 و4585 1/1/2021 | I8: حزيران 2022
B9: عباس كوراني | C9: ='جدول الأشهر-2022'!D7 -> 35000 | D9: 186000 | E9: فواتير كهرباء المصعد و الناعورة عن اشهر 1و2 -2019 | G9: المرحوم زكي حمادي | I9: تموز 2022
A10: 4 | B10: هاني بري | C10: ='جدول الأشهر-2022'!D8 -> 0 | G10: ليلى نور الدين/ ابوهاشم | I10: آب 2022 | K10: =304+68 -> 372
B11: شوقي فقية | C11: ='جدول الأشهر-2022'!D9 -> 35000 | I11: ايلول 2022 | K11: =K10/2 -> 186
B12: د بلان حمية | C12: ='جدول الأشهر-2022'!D10 -> 0 | I12: تشرين الأول 2022
A13: 3 | B13: عبداللة هرمناني | C13: ='جدول الأشهر-2022'!D11 -> 35000 | I13: تشرين الثاني 2022
B14: فؤاد إسماعيل | C14: ='جدول الأشهر-2022'!D12 -> 35000 | I14: كانون الأول 2022
B15: علي المولى | C15: ='جدول الأشهر-2022'!D13 -> 35000 | G15: شقة الحاج سميح هيدوس | I15: جدول الأشهر
A16: 2 | B16: علي كركي | C16: ='جدول الأشهر-2022'!D14 -> 35000
B17: محمد صفي الدين | C17: ='جدول الأشهر-2022'!D15 -> 0
B18: خليل شلهوب | C18: ='جدول الأشهر-2022'!D16 -> 25000 | E18: شاغرة | G18: ابراهيم ابو ملحم
A19: 1 | B19: اسامه زين الدين | C19: ='جدول الأشهر-2022'!D17 -> 25000
B20: احمد حرب | C20: ='جدول الأشهر-2022'!D18 -> 25000
A21: ارضي | C21: ='جدول الأشهر-2022'!D19 -> 25000 | G21: حسن عواضة
A22: ايراد المحلات | B22: الفرن | C22: ='جدول الأشهر-2022'!D20 -> 0 | E22: ترك
B23: من السكان/تغيير كابين المصعد
A24: المجموع | C24: =SUM(C6:C23) -> 375000 | D24: =SUM(D6:D23) -> 595000 | E24: رصيد الشهر | F24: =C24-D24 -> -220000
E25: الرصيد السابق | F25: ='كانون الثاني 2022'!F26 -> 87250
E26: اجمالي الرصيد | F26: =F24+F25 -> -132750
C27: =NoToTxt(F26,"ليرة لبنانية","قرشا") -> 
A28: التوقيع: | D28: التوقيع:

Sheet آذار 2022
A1: بنــــــــــــــــــــاية الضـــــــــــــــــــــــــحى
A2: كشف حساب المصعد و المبنى عن العام 2022
A3: الطابق | B3: الشهر: | C3: آذار -2022 | F3: بلوك A | G3: رابط الصفحات'!A1 | I3: كانون الثاني 2022
B4: الإيرادات | D4: المصاريف | I4: شباط 2022
B5: الإسم | C5: المبلغ | D5: المصاريف | E5: الشرح | I5: آذار 2022
B6: احمد غانم | C6: ='جدول الأشهر-2022'!E4 -> 0 | E6: راتب الناطور/ أبو ضياء | I6: نيسان 2022
A7: 5 | B7: احمد يحيا | C7: ='جدول الأشهر-2022'!E5 -> 0 | E7: انارة / لمبات توفير - اليتيم | G7: طلال بدر | I7: ايار 2022
B8: خليل هواري | C8: ='جدول الأشهر-2022'!E6 -> 0 | E8: رش و تعقيم المدخل و الادراج | I8: حزيران 2022
B9: عباس كوراني | C9: ='جدول الأشهر-2022'!E7 -> 0 | E9: صيانة المجارير و الصحية/تنظيف | G9: المرحوم زكي حمادي | I9: تموز 2022
A10: 4 | B10: هاني بري | C10: ='جدول الأشهر-2022'!E8 -> 0 | G10: ليلى نور الدين/ ابوهاشم | I10: آب 2022
B11: شوقي فقية | C11: ='جدول الأشهر-2022'!E9 -> 0 | I11: ايلول 2022
B12: د بلان حمية | C12: ='جدول الأشهر-2022'!E10 -> 0 | I12: تشرين الأول 2022
A13: 3 | B13: عبداللة هرمناني | C13: ='جدول الأشهر-2022'!E11 -> 0 | I13: تشرين الثاني 2022
B14: فؤاد إسماعيل | C14: ='جدول الأشهر-2022'!E12 -> 0 | I14: كانون الأول 2022
B15: علي المولى | C15: ='جدول الأشهر-2022'!E13 -> 0 | G15: شقة الحاج سميح هيدوس | I15: جدول الأشهر
A16: 2 | B16: علي كركي | C16: ='جدول الأشهر-2022'!E14 -> 0
B17: محمد صفي الدين | C17: ='جدول الأشهر-2022'!E15 -> 0
B18: خليل شلهوب | C18: ='جدول الأشهر-2022'!E16 -> 0 | G18: ابراهيم ابو ملحم
A19: 1 | B19: اسامه زين الدين | C19: ='جدول الأشهر-2022'!E17 -> 0
B20: احمد حرب | C20: ='جدول الأشهر-2022'!E18 -> 0
A21: ارضي | C21: ='جدول الأشهر-2022'!E19 -> 25000 | G21: حسن عواضة
A22: ايراد المحلات | B22: الفرن | C22: ='جدول الأشهر-2022'!E20 -> 0
A24: المجموع | C24: =SUM(C6:C23) -> 25000 | D24: =SUM(D6:D23) -> 0 | E24: رصيد الشهر | F24: =C24-D24 -> 25000
E25: الرصيد السابق | F25: ='شباط 2022 '!F26 -> -132750
E26: اجمالي الرصيد | F26: =F24+F25 -> -107750
C27: =NoToTxt(F26,"ليرة لبنانية","قرشا") -> 
A28: التوقيع: | D28: التوقيع:

Sheet نيسان 2022
A1: بنــــــــــــــــــــاية الضـــــــــــــــــــــــــحى
A2: كشف حساب المصعد و المبنى عن العام 2022
A3: الطابق | B3: الشهر: | C3: نيسان -2022 | F3: بلوك A | G3: رابط الصفحات'!A1 | I3: كانون الثاني 2022
B4: الإيرادات | D4: المصاريف | I4: شباط 2022
B5: الإسم | C5: المبلغ | D5: المصاريف | E5: الشرح | I5: آذار 2022
B6: احمد غانم | C6: ='جدول الأشهر-2022'!F4 -> 0 | E6: راتب الناطور/ رياض | I6: نيسان 2022
A7: 5 | B7: احمد يحيا | C7: ='جدول الأشهر-2022'!F5 -> 0 | E7: مواد تنظيف | G7: طلال بدر | I7: ايار 2022
B8: خليل هواري | C8: ='جدول الأشهر-2022'!F6 -> 0 | E8: فاتورة كهرباء / عن شهري 9 و 10 /2018 | I8: حزيران 2022
B9: عباس كوراني | C9: ='جدول الأشهر-2022'!F7 -> 0 | G9: المرحوم زكي حمادي | I9: تموز 2022
A10: 4 | B10: هاني بري | C10: ='جدول الأشهر-2022'!F8 -> 0 | G10: ليلى نور الدين/ ابوهاشم | I10: آب 2022
B11: شوقي فقية | C11: ='جدول الأشهر-2022'!F9 -> 0 | I11: ايلول 2022
B12: د بلان حمية | C12: ='جدول الأشهر-2022'!F10 -> 0 | I12: تشرين الأول 2022
A13: 3 | B13: عبداللة هرمناني | C13: ='جدول الأشهر-2022'!F11 -> 0 | I13: تشرين الثاني 2022
B14: فؤاد إسماعيل | C14: ='جدول الأشهر-2022'!F12 -> 0 | I14: كانون الأول 2022
B15: علي المولى | C15: ='جدول الأشهر-2022'!F13 -> 0 | G15: شقة الحاج سميح هيدوس | I15: جدول الأشهر
A16: 2 | B16: علي كركي | C16: ='جدول الأشهر-2022'!F14 -> 0
B17: محمد صفي الدين | C17: ='جدول الأشهر-2022'!F15 -> 0
B18: خليل شلهوب | C18: ='جدول الأشهر-2022'!F16 -> 0 | G18: ابراهيم ابو ملحم
A19: 1 | B19: اسامه زين الدين | C19: ='جدول الأشهر-2022'!F17 -> 0
B20: احمد حرب | C20: ='جدول الأشهر-2022'!F18 -> 0
A21: ارضي | C21: ='جدول الأشهر-2022'!F19 -> 25000 | G21: حسن عواضة
A22: ايراد المحلات | B22: الفرن | C22: ='جدول الأشهر-2022'!F20 -> ترك
A24: المجموع | C24: =SUM(C6:C23) -> 25000 | D24: =SUM(D6:D23) -> 0 | E24: رصيد الشهر | F24: =C24-D24 -> 25000
E25: الرصيد السابق | F25: ='آذار 2022'!F26 -> -107750
E26: اجمالي الرصيد | F26: =F24+F25 -> -82750
C27: =NoToTxt(F26,"ليرة لبنانية","قرشا") -> 
A28: التوقيع: | D28: التوقيع:

Sheet ايار2022
A1: بنــــــــــــــــــــاية الضـــــــــــــــــــــــــحى
A2: كشف حساب المصعد و المبنى عن العام 2022
A3: الطابق | B3: الشهر: | C3: ايار -2022 | F3: بلوك A | G3: رابط الصفحات'!A1 | I3: كانون الثاني 2022
B4: الإيرادات | D4: المصاريف | I4: شباط 2022
B5: الإسم | C5: المبلغ | D5: المصاريف | E5: الشرح | I5: آذار 2022
B6: احمد غانم | C6: ='جدول الأشهر-2022'!G4 -> 0 | E6: راتب الناطور/ رياض | I6: نيسان 2022
A7: 5 | B7: احمد يحيا | C7: ='جدول الأشهر-2022'!G5 -> 0 | E7: مواد تنظيف / س-ماركت ترمس | G7: طلال بدر | I7: ايار 2022
B8: خليل هواري | C8: ='جدول الأشهر-2022'!G6 -> 0 | E8: قطع غيار/المصعد- رصور مع جنزير | I8: حزيران 2022
B9: عباس كوراني | C9: ='جدول الأشهر-2022'!G7 -> 0 | G9: المرحوم زكي حمادي | I9: تموز 2022
A10: 4 | B10: هاني بري | C10: ='جدول الأشهر-2022'!G8 -> 0 | G10: ليلى نور الدين/ ابوهاشم | I10: آب 2022
B11: شوقي فقية | C11: ='جدول الأشهر-2022'!G9 -> 0 | I11: ايلول 2022
B12: د بلان حمية | C12: ='جدول الأشهر-2022'!G10 -> 0 | I12: تشرين الأول 2022
A13: 3 | B13: عبداللة هرمناني | C13: ='جدول الأشهر-2022'!G11 -> 0 | I13: تشرين الثاني 2022
B14: فؤاد إسماعيل | C14: ='جدول الأشهر-2022'!G12 -> 0 | I14: كانون الأول 2022
B15: علي المولى | C15: ='جدول الأشهر-2022'!G13 -> 0 | G15: شقة الحاج سميح هيدوس | I15: جدول الأشهر
A16: 2 | B16: علي كركي | C16: ='جدول الأشهر-2022'!G14 -> 0
B17: محمد صفي الدين | C17: ='جدول الأشهر-2022'!G15 -> 0
B18: خليل شلهوب | C18: ='جدول الأشهر-2022'!G16 -> 0 | G18: ابراهيم ابو ملحم
A19: 1 | B19: اسامه زين الدين | C19: ='جدول الأشهر-2022'!G17 -> 0
B20: احمد حرب | C20: ='جدول الأشهر-2022'!G18 -> 0
A21: ارضي | C21: ='جدول الأشهر-2022'!G19 -> 0 | G21: حسن عواضة
A22: ايراد المحلات | B22: الفرن | C22: ='جدول الأشهر-2022'!G20 -> ترك
A24: المجموع | C24: =SUM(C6:C23) -> 0 | D24: =SUM(D6:D23) -> 0 | E24: رصيد الشهر | F24: =G24-D24 -> 0
E25: الرصيد السابق | F25: ='نيسان 2022'!F26 -> -82750
E26: اجمالي الرصيد | F26: =F24+F25 -> -82750
C27: =NoToTxt(F26,"ليرة لبنانية","قرشا") -> 
A28: التوقيع: | D28: التوقيع:

Sheet حزيران2022
A1: بنــــــــــــــــــــاية الضـــــــــــــــــــــــــحى
A2: كشف حساب المصعد و المبنى عن العام 2022
A3: الطابق | B3: الشهر: | C3: حزيران -2022 | F3: بلوك A | G3: رابط الصفحات'!A1 | I3: كانون الثاني 2022
B4: الإيرادات | D4: المصاريف | I4: شباط 2022
B5: الإسم | C5: المبلغ | D5: المصاريف | E5: الشرح | I5: آذار 2022
B6: احمد غانم | C6: ='جدول الأشهر-2022'!H4 -> 0 | E6: راتب الناطور/ رياض | I6: نيسان 2022
A7: 5 | B7: احمد يحيا | C7: ='جدول الأشهر-2022'!H5 -> 0 | E7: مواد تنظيف | G7: طلال بدر | I7: ايار 2022
B8: خليل هواري | C8: ='جدول الأشهر-2022'!H6 -> 0 | E8: تغيير قفل باب غرفة الناطور | I8: حزيران 2022
B9: عباس كوراني | C9: ='جدول الأشهر-2022'!H7 -> 0 | E9: صيانة المجارير و الصحية/تنظيف | G9: المرحوم زكي حمادي | I9: تموز 2022
A10: 4 | B10: هاني بري | C10: ='جدول الأشهر-2022'!H8 -> 0 | G10: ليلى نور الدين/ ابوهاشم | I10: آب 2022
B11: شوقي فقية | C11: ='جدول الأشهر-2022'!H9 -> 0 | I11: ايلول 2022 | M11: =350*1500 -> 525000
B12: د بلان حمية | C12: ='جدول الأشهر-2022'!H10 -> 0 | I12: تشرين الأول 2022
A13: 3 | B13: عبداللة هرمناني | C13: ='جدول الأشهر-2022'!H11 -> 0 | I13: تشرين الثاني 2022
B14: فؤاد إسماعيل | C14: ='جدول الأشهر-2022'!H12 -> 0 | I14: كانون الأول 2022
B15: علي المولى | C15: ='جدول الأشهر-2022'!H13 -> 0 | G15: شقة الحاج سميح هيدوس | I15: جدول الأشهر
A16: 2 | B16: علي كركي | C16: ='جدول الأشهر-2022'!H14 -> 0
B17: محمد صفي الدين | C17: ='جدول الأشهر-2022'!H15 -> 0
B18: خليل شلهوب | C18: ='جدول الأشهر-2022'!H16 -> 0 | G18: ابراهيم ابو ملحم
A19: 1 | B19: اسامه زين الدين | C19: ='جدول الأشهر-2022'!H17 -> 0
B20: احمد حرب | C20: ='جدول الأشهر-2022'!H18 -> 0
A21: ارضي | B21: محمود حسن | C21: ='جدول الأشهر-2022'!H19 -> 0 | G21: حسن عواضة
A22: ايراد المحلات | B22: الفرن | C22: ='جدول الأشهر-2022'!H20 -> ترك
A24: المجموع | C24: =SUM(C6:C23) -> 0 | D24: =SUM(D6:D23) -> 0 | E24: رصيد الشهر | F24: =C24-D24 -> 0
E25: الرصيد السابق | F25: =ايار2022!F26 -> -82750
E26: اجمالي الرصيد | F26: =F24+F25 -> -82750
C27: =NoToTxt(F26,"ليرة لبنانية","قرشا") -> 
A28: التوقيع: | D28: التوقيع:

Sheet تموز 2022
A1: بنــــــــــــــــــــاية الضـــــــــــــــــــــــــحى
A2: كشف حساب المصعد و المبنى عن العام 2022
A3: الطابق | B3: الشهر: | C3: تموز -2022 | F3: بلوك A | G3: رابط الصفحات'!A1 | I3: كانون الثاني 2022
B4: الإيرادات | D4: المصاريف | I4: شباط 2022
B5: الإسم | C5: المبلغ | D5: المصاريف | E5: الشرح | I5: آذار 2022
B6: احمد غانم | C6: ='جدول الأشهر-2022'!I4 -> 0 | E6: راتب الناطور/ رياض | I6: نيسان 2022
A7: 5 | B7: احمد يحيا | C7: ='جدول الأشهر-2022'!I5 -> 0 | E7: مواد تنظيف | G7: طلال بدر | I7: ايار 2022
B8: خليل هواري | C8: ='جدول الأشهر-2022'!I6 -> 0 | E8: صيانة UPS - احمد يحيا | I8: حزيران 2022
B9: عباس كوراني | C9: ='جدول الأشهر-2022'!I7 -> 0 | E9: دفعة من حساب عقد صيانة المصعد ايصال 1688 | G9: المرحوم زكي حمادي | I9: تموز 2022
A10: 4 | B10: هاني بري | C10: ='جدول الأشهر-2022'!I8 -> 0 | G10: ليلى نور الدين/ ابوهاشم | I10: آب 2022
B11: شوقي فقية | C11: ='جدول الأشهر-2022'!I9 -> 0 | I11: ايلول 2022
B12: د بلان حمية | C12: ='جدول الأشهر-2022'!I10 -> 0 | I12: تشرين الأول 2022
A13: 3 | B13: عبداللة هرمناني | C13: ='جدول الأشهر-2022'!I11 -> 0 | I13: تشرين الثاني 2022
B14: فؤاد إسماعيل | C14: ='جدول الأشهر-2022'!I12 -> 0 | I14: كانون الأول 2022
B15: علي المولى | C15: ='جدول الأشهر-2022'!I13 -> 0 | G15: شقة الحاج سميح هيدوس | I15: جدول الأشهر
A16: 2 | B16: علي كركي | C16: ='جدول الأشهر-2022'!I14 -> 0
B17: محمد صفي الدين | C17: ='جدول الأشهر-2022'!I15 -> 0
B18: خليل شلهوب | C18: ='جدول الأشهر-2022'!I16 -> 0 | G18: ابراهيم ابو ملحم
A19: 1 | B19: اسامه زين الدين | C19: ='جدول الأشهر-2022'!I17 -> 0
B20: احمد حرب | C20: ='جدول الأشهر-2022'!I18 -> 0
A21: ارضي | B21: محمود حسن | C21: ='جدول الأشهر-2022'!I19 -> 0 | G21: حسن عواضة
A22: ايراد المحلات | B22: الفرن | C22: ='جدول الأشهر-2022'!I20 -> ترك
A24: المجموع | C24: =SUM(C6:C23) -> 0 | D24: =SUM(D6:D23) -> 0 | E24: رصيد الشهر | F24: =C24-D24 -> 0
E25: الرصيد السابق | F25: =حزيران2022!F26 -> -82750
E26: اجمالي الرصيد | F26: =F24+F25 -> -82750
C27: =NoToTxt(F26,"ليرة لبنانية","قرشا") -> 
A28: التوقيع: | D28: التوقيع:

Sheet آب 2022
A1: بنــــــــــــــــــــاية الضـــــــــــــــــــــــــحى
A2: كشف حساب المصعد و المبنى عن العام 2022
A3: الطابق | B3: الشهر: | C3: آب -2022 | F3: بلوك A | G3: رابط الصفحات'!A1 | I3: كانون الثاني 2022
B4: الإيرادات | D4: المصاريف | I4: شباط 2022
B5: الإسم | C5: المبلغ | D5: المصاريف | E5: الشرح | I5: آذار 2022
B6: احمد غانم | C6: ='جدول الأشهر-2022'!J4 -> 0 | E6: راتب الناطور/ أبو ضياء | I6: نيسان 2022
A7: 5 | B7: احمد يحيا | C7: ='جدول الأشهر-2022'!J5 -> 0 | E7: مواد تنظيف -تعاونية ترمس | G7: طلال بدر | H7: عن تموز و آب 2015 | I7: ايار 2022
B8: خليل هواري | C8: ='جدول الأشهر-2022'!J6 -> 0 | E8: غطاء ريغار مع قاعدة عدد 2 -10/8/2020 | I8: حزيران 2022
B9: عباس كوراني | C9: ='جدول الأشهر-2022'!J7 -> 0 | G9: المرحوم زكي حمادي | I9: تموز 2022
A10: 4 | B10: هاني بري | C10: ='جدول الأشهر-2022'!J8 -> 0 | G10: ليلى نور الدين/ ابوهاشم | I10: آب 2022
B11: شوقي فقية | C11: ='جدول الأشهر-2022'!J9 -> 0 | I11: ايلول 2022
B12: د بلان حمية | C12: ='جدول الأشهر-2022'!J10 -> 0 | I12: تشرين الأول 2022
A13: 3 | B13: عبداللة هرمناني | C13: ='جدول الأشهر-2022'!J11 -> 0 | I13: تشرين الثاني 2022
B14: فؤاد إسماعيل | C14: ='جدول الأشهر-2022'!J12 -> 0 | I14: كانون الأول 2022
B15: علي المولى | C15: ='جدول الأشهر-2022'!J13 -> 0 | G15: شقة الحاج سميح هيدوس | I15: جدول الأشهر
A16: 2 | B16: علي كركي | C16: ='جدول الأشهر-2022'!J14 -> 0
B17: محمد صفي الدين | C17: ='جدول الأشهر-2022'!J15 -> 0
B18: خليل شلهوب | C18: ='جدول الأشهر-2022'!J16 -> 0 | G18: ابراهيم ابو ملحم
A19: 1 | B19: اسامه زين الدين | C19: ='جدول الأشهر-2022'!J17 -> 0
B20: احمد حرب | C20: ='جدول الأشهر-2022'!J18 -> 0
A21: ارضي | B21: محمود حسن | C21: ='جدول الأشهر-2022'!J19 -> 0 | G21: حسن عواضة
A22: ايراد المحلات | B22: الفرن | C22: ='جدول الأشهر-2022'!J20 -> ترك
A24: المجموع | C24: =SUM(C6:C23) -> 0 | D24: =SUM(D6:D23) -> 0 | E24: رصيد الشهر | F24: =C24-D24 -> 0
E25: الرصيد السابق | F25: ='تموز 2022'!F26 -> -82750
E26: اجمالي الرصيد | F26: =F24+F25 -> -82750
C27: =NoToTxt(F26,"ليرة لبنانية","قرشا") -> 
A28: التوقيع: | D28: التوقيع:

Sheet ايلول 2022
A1: بنــــــــــــــــــــاية الضـــــــــــــــــــــــــحى
A2: كشف حساب المصعد و المبنى عن العام 2022
A3: الطابق | B3: الشهر: | C3: ايلول -2022 | F3: بلوك A | G3: رابط الصفحات'!A1 | I3: كانون الثاني 2022
B4: الإيرادات | D4: المصاريف | I4: شباط 2022
B5: الإسم | C5: المبلغ | D5: المصاريف | E5: الشرح | I5: آذار 2022
B6: احمد غانم | C6: ='جدول الأشهر-2022'!K4 -> 0 | E6: راتب الناطور/ رياض | I6: نيسان 2022
A7: 5 | B7: احمد يحيا | C7: ='جدول الأشهر-2022'!K5 -> 0 | E7: مواد تنظيف | G7: طلال بدر | I7: ايار 2022
B8: خليل هواري | C8: ='جدول الأشهر-2022'!K6 -> 0 | E8: صيانة المصعد /تسديد كامل الحساب حتى تاريخه 17/9/2020 +عقد التامين | I8: حزيران 2022
B9: عباس كوراني | C9: ='جدول الأشهر-2022'!K7 -> 0 | G9: المرحوم زكي حمادي | I9: تموز 2022
A10: 4 | B10: هاني بري | C10: ='جدول الأشهر-2022'!K8 -> 0 | G10: ليلى نور الدين/ ابوهاشم | I10: آب 2022
B11: شوقي فقية | C11: ='جدول الأشهر-2022'!K9 -> 0 | I11: ايلول 2022
B12: د بلان حمية | C12: ='جدول الأشهر-2022'!K10 -> 0 | I12: تشرين الأول 2022
A13: 3 | B13: عبداللة هرمناني | C13: ='جدول الأشهر-2022'!K11 -> 0 | I13: تشرين الثاني 2022
B14: فؤاد إسماعيل | C14: ='جدول الأشهر-2022'!K12 -> 0 | I14: كانون الأول 2022
B15: علي المولى | C15: ='جدول الأشهر-2022'!K13 -> 0 | G15: شقة الحاج سميح هيدوس | I15: جدول الأشهر
A16: 2 | B16: علي كركي | C16: ='جدول الأشهر-2022'!K14 -> 0
B17: محمد صفي الدين | C17: ='جدول الأشهر-2022'!K15 -> 0
B18: خليل شلهوب | C18: ='جدول الأشهر-2022'!K16 -> 0 | G18: ابراهيم ابو ملحم
A19: 1 | B19: اسامه زين الدين | C19: ='جدول الأشهر-2022'!K17 -> 0
B20: احمد حرب | C20: ='جدول الأشهر-2022'!K18 -> 0
A21: ارضي | B21: محمود حسن | C21: ='جدول الأشهر-2022'!K19 -> 0 | G21: حسن عواضة
A22: ايراد المحلات | B22: الفرن | C22: ='جدول الأشهر-2022'!K20 -> ترك
A24: المجموع | C24: =SUM(C6:C23) -> 0 | D24: =SUM(D6:D23) -> 0 | E24: رصيد الشهر | F24: =C24-D24 -> 0
E25: الرصيد السابق | F25: ='آب 2022 '!F26 -> -82750
E26: اجمالي الرصيد | F26: =F24+F25 -> -82750
C27: =NoToTxt(F26,"ليرة لبنانية","قرشا") -> 
A28: التوقيع: | D28: التوقيع:

Sheet تشرين الأول2022
A1: بنــــــــــــــــــــاية الضـــــــــــــــــــــــــحى
A2: كشف حساب المصعد و المبنى عن العام 2022
A3: الطابق | B3: الشهر: | C3: تشرين الأول -2022 | F3: بلوك A | G3: رابط الصفحات'!A1 | I3: كانون الثاني 2022
B4: الإيرادات | D4: المصاريف | I4: شباط 2022
B5: الإسم | C5: المبلغ | D5: المصاريف | E5: الشرح | I5: آذار 2022
B6: احمد غانم | C6: ='جدول الأشهر-2022'!L4 -> 0 | E6: راتب الناطور/ رياض | I6: نيسان 2022
A7: 5 | B7: احمد يحيا | C7: ='جدول الأشهر-2022'!L5 -> 0 | E7: مواد تنظيف | G7: طلال بدر | I7: ايار 2022
B8: خليل هواري | C8: ='جدول الأشهر-2022'!L6 -> 0 | I8: حزيران 2022
B9: عباس كوراني | C9: ='جدول الأشهر-2022'!L7 -> 0 | G9: المرحوم زكي حمادي | I9: تموز 2022
A10: 4 | B10: هاني بري | C10: ='جدول الأشهر-2022'!L8 -> 0 | G10: ليلى نور الدين/ ابوهاشم | I10: آب 2022
B11: شوقي فقية | C11: ='جدول الأشهر-2022'!L9 -> 0 | I11: ايلول 2022
B12: د بلان حمية | C12: ='جدول الأشهر-2022'!L10 -> 0 | I12: تشرين الأول 2022
A13: 3 | B13: عبداللة هرمناني | C13: ='جدول الأشهر-2022'!L11 -> 0 | I13: تشرين الثاني 2022
B14: فؤاد إسماعيل | C14: ='جدول الأشهر-2022'!L12 -> 0 | I14: كانون الأول 2022
B15: علي المولى | C15: ='جدول الأشهر-2022'!L13 -> 0 | G15: شقة الحاج سميح هيدوس | I15: جدول الأشهر
A16: 2 | B16: علي كركي | C16: ='جدول الأشهر-2022'!L14 -> 0
B17: محمد صفي الدين | C17: ='جدول الأشهر-2022'!L15 -> 0
B18: خليل شلهوب | C18: ='جدول الأشهر-2022'!L16 -> 0 | G18: ابراهيم ابو ملحم
A19: 1 | B19: اسامه زين الدين | C19: ='جدول الأشهر-2022'!L17 -> 0
B20: احمد حرب | C20: ='جدول الأشهر-2022'!L18 -> 0
A21: ارضي | B21: محمود حسن | C21: ='جدول الأشهر-2022'!L19 -> 0 | G21: حسن عواضة
A22: ايراد المحلات | B22: الفرن | C22: ='جدول الأشهر-2022'!L20 -> ترك
A24: المجموع | C24: =SUM(C6:C23) -> 0 | D24: =SUM(D6:D23) -> 0 | E24: رصيد الشهر | F24: =C24-D24 -> 0
E25: الرصيد السابق | F25: ='ايلول 2022 '!F26 -> -82750
E26: اجمالي الرصيد | F26: =F24+F25 -> -82750
C27: =NoToTxt(F26,"ليرة لبنانية","قرشا") -> 
A28: التوقيع: | D28: التوقيع:

Sheet تشرين الثاني2022
A1: بنــــــــــــــــــــاية الضـــــــــــــــــــــــــحى
A2: كشف حساب المصعد و المبنى عن العام 2022
A3: الطابق | B3: الشهر: | C3: تشرين الثاني -2022 | F3: بلوك A | G3: رابط الصفحات'!A1 | I3: كانون الثاني 2022
B4: الإيرادات | D4: المصاريف | I4: شباط 2022
B5: الإسم | C5: المبلغ | D5: المصاريف | E5: الشرح | I5: آذار 2022
B6: احمد غانم | C6: ='جدول الأشهر-2022'!M4 -> 0 | E6: راتب الناطور/ أبو ضياء | I6: نيسان 2022
A7: 5 | B7: احمد يحيا | C7: ='جدول الأشهر-2022'!M5 -> 0 | E7: مواد تنظيف | G7: طلال بدر | I7: ايار 2022
B8: خليل هواري | C8: ='جدول الأشهر-2022'!M6 -> 0 | E8: تركيب قفل لباب السطح/فاتورة اليتيم | I8: حزيران 2022
B9: عباس كوراني | C9: ='جدول الأشهر-2022'!M7 -> 0 | E9: فاتورة كهرباءعن اشهر 11 و 12 /2018 | G9: المرحوم زكي حمادي | I9: تموز 2022
A10: 4 | B10: هاني بري | C10: ='جدول الأشهر-2022'!M8 -> 0 | E10: صيانة المجارير و الصحية/قسطل تصرف في المدخل | G10: ليلى نور الدين/ ابوهاشم | I10: آب 2022
B11: شوقي فقية | C11: ='جدول الأشهر-2022'!M9 -> 0 | I11: ايلول 2022
B12: د بلان حمية | C12: ='جدول الأشهر-2022'!M10 -> 0 | I12: تشرين الأول 2022 | K12: واصل مبلغ 210000 ليرة عن ستة اشهر الأشهر من جزيران الى تشرين الثاني 2014
A13: 3 | B13: عبداللة هرمناني | C13: ='جدول الأشهر-2022'!M11 -> 0 | I13: تشرين الثاني 2022
B14: فؤاد إسماعيل | C14: ='جدول الأشهر-2022'!M12 -> 0 | I14: كانون الأول 2022
B15: علي المولى | C15: ='جدول الأشهر-2022'!M13 -> 0 | G15: شقة الحاج سميح هيدوس | I15: جدول الأشهر
A16: 2 | B16: علي كركي | C16: ='جدول الأشهر-2022'!M14 -> 0
B17: محمد صفي الدين | C17: ='جدول الأشهر-2022'!M15 -> 0
B18: خليل شلهوب | C18: ='جدول الأشهر-2022'!M16 -> 0 | G18: ابراهيم ابو ملحم
A19: 1 | B19: اسامه زين الدين | C19: ='جدول الأشهر-2022'!M17 -> 0
B20: احمد حرب | C20: ='جدول الأشهر-2022'!M18 -> 0
A21: ارضي | B21: محمود حسن | C21: ='جدول الأشهر-2022'!M19 -> 0 | G21: حسن عواضة
A22: ايراد المحلات | B22: الفرن | C22: ='جدول الأشهر-2022'!M20 -> ترك
A24: المجموع | C24: =SUM(C6:C23) -> 0 | D24: =SUM(D6:D23) -> 0 | E24: رصيد الشهر | F24: =C24-D24 -> 0
E25: الرصيد السابق | F25: ='تشرين الأول2022'!F26 -> -82750
E26: اجمالي الرصيد | F26: =F24+F25 -> -82750
C27: =NoToTxt(F26,"ليرة لبنانية","قرشا") -> 
A28: التوقيع: | D28: التوقيع:

Sheet كانون الأول2022
A1: بنــــــــــــــــــــاية الضـــــــــــــــــــــــــحى
A2: كشف حساب المصعد و المبنى عن العام 2022
A3: الطابق | B3: الشهر: | C3: كانون الأول -2022 | F3: بلوك A | G3: رابط الصفحات'!A1 | I3: كانون الثاني 2022
B4: الإيرادات | D4: المصاريف | I4: شباط 2022
B5: الإسم | C5: المبلغ | D5: المصاريف | E5: الشرح | I5: آذار 2022
B6: احمد غانم | C6: ='جدول الأشهر-2022'!N4 -> 0 | E6: راتب الناطور/ رياض | I6: نيسان 2022
A7: 5 | B7: احمد يحيا | C7: ='جدول الأشهر-2022'!N5 -> 0 | E7: مواد تنظيف | G7: طلال بدر | I7: ايار 2022
B8: خليل هواري | C8: ='جدول الأشهر-2022'!N6 -> 0 | I8: حزيران 2022
B9: عباس كوراني | C9: ='جدول الأشهر-2022'!N7 -> 0 | G9: المرحوم زكي حمادي | I9: تموز 2022
A10: 4 | B10: هاني بري | C10: ='جدول الأشهر-2022'!N8 -> 0 | G10: ليلى نور الدين/ ابوهاشم | I10: آب 2022
B11: شوقي فقية | C11: ='جدول الأشهر-2022'!N9 -> 0 | I11: ايلول 2022
B12: د بلان حمية | C12: ='جدول الأشهر-2022'!N10 -> 0 | I12: تشرين الأول 2022
A13: 3 | B13: عبداللة هرمناني | C13: ='جدول الأشهر-2022'!N11 -> 0 | I13: تشرين الثاني 2022
B14: فؤاد إسماعيل | C14: ='جدول الأشهر-2022'!N12 -> 0 | I14: كانون الأول 2022
B15: علي المولى | C15: ='جدول الأشهر-2022'!N13 -> 0 | G15: شقة الحاج سميح هيدوس | I15: جدول الأشهر
A16: 2 | B16: علي كركي | C16: ='جدول الأشهر-2022'!N14 -> 0
B17: محمد صفي الدين | C17: ='جدول الأشهر-2022'!N15 -> 0
B18: خليل شلهوب | C18: ='جدول الأشهر-2022'!N16 -> 0 | G18: ابراهيم ابو ملحم
A19: 1 | B19: اسامه زين الدين | C19: ='جدول الأشهر-2022'!N17 -> 0
B20: احمد حرب | C20: ='جدول الأشهر-2022'!N18 -> 0
A21: ارضي | B21: محمود حسن | C21: ='جدول الأشهر-2022'!N19 -> 0 | G21: حسن عواضة
A22: ايراد المحلات | B22: الفرن | C22: ='جدول الأشهر-2022'!N20 -> ترك
A24: المجموع | C24: =SUM(C6:C23) -> 0 | D24: =SUM(D6:D23) -> 0 | E24: رصيد الشهر | F24: =C24-D24 -> 0
E25: الرصيد السابق | F25: ='تشرين الثاني2022'!F26 -> -82750
E26: اجمالي الرصيد | F26: =F24+F25 -> -82750
C27: =NoToTxt(F26,"ليرة لبنانية","قرشا") -> 
A28: التوقيع: | D28: التوقيع:

Sheet جدول الأشهر-2022
A2: الطابق | B2: 2022 | C2: كانون الثاني | D2: شباط | E2: آذار | F2: نيسان | G2: ايار | H2: حزيران | I2: تموز | J2: آب | K2: ايلول | L2: تشرين الأول | M2: تشرين الثاني | N2: كانون الأول | O2: المجموع | P2: المتاخرات
C3: Jan | D3: Feb | E3: Mar | F3: Apr | G3: May | H3: Jun | I3: Jul | J3: Aug | K3: Sep | L3: Oct | M3: Nov | N3: Dec
B4: احمد غانم | C4: 35000 | D4: 35000 | O4: =SUM(C4:N4) -> 70000 | P4: =420000-O4 -> 350000
A5: 5 | B5: احمد يحيا | C5: 0 | D5: 0 | O5: =SUM(C5:N5) -> 0 | P5: =420000-O5 -> 420000
B6: خليل هواري | C6: 30000 | D6: 30000 | O6: 60000 | P6: =360000-O6 -> 300000
A7: حمادي | B7: عباس كوراني | C7: 35000 | D7: 35000 | O7: 70000 | P7: 350000
A8: 4 | B8: هاني بري | C8: 0 | D8: 0 | O8: 0 | P8: 420000
B9: شوقي فقية | C9: 35000 | D9: 35000 | O9: 70000 | P9: 350000 | X9: شقة السيد دبلان حميــه
B10: د بلان حمية | D10: 0 | O10: 0 | P10: 420000 | Q10: واصل 210,000 عن الفترة من حزيران 2014 الى تشرين الثاني2014 | W10: متأخرات من كانون الأول 2014 - حتى تاريخة
A11: 3 | B11: عبداللة هرمناني | C11: 35000 | D11: 35000 | O11: 70000 | P11: 350000 | W11: الفترة من : | X11: الى :
B12: فؤاد إسماعيل | C12: 35000 | D12: 35000 | O12: 70000 | P12: 350000 | T12: كانون الثاني 2022 | W12: 2014-12-01 | X12: =TODAY() -> 2022-11-15 | Y12: =DATEDIF(W12,X12,"m") -> 95 | Z12: شهراً
B13: علي المولى | C13: 35000 | D13: 35000 | O13: 70000 | P13: 350000 | Q13: سميح هيدوس | T13: شباط 2022 | X13: =Y12* 35000 -> 3325000 | Y13: =35000*Y12 -> 3325000 | Z13: ل.ل
A14: 2 | B14: علي كركي | C14: 35000 | D14: 35000 | O14: 70000 | P14: 350000 | T14: شباط 2022 | W14: =DATEDIF(W12,X12,"y")&" years, " &DATEDIF(W12,X12,"ym")&" months, " &X12-DATE(YEAR(X12),MONTH(X12),1)&" days" -> 7 years, 11 months, 14 days | AA14: =DATEDIF(W12,X12,"Y") & " Years, " & DATEDIF(W12,X12,"YM") & " Months" -> 7 Years, 11 Months
B15: محمد صفي الدين | C15: 35000 | D15: 0 | O15: 35000 | P15: 385000 | T15: نيسان 2022
B16: خليل شلهوب | C16: 25000 | D16: 25000 | O16: 50000 | P16: =25000*12-O16 -> 250000 | T16: ايار 2022
A17: 1 | B17: اسامة زين الدين | C17: 25000 | D17: 25000 | O17: 50000 | P17: =300000-O17 -> 250000 | Q17: شقة يتيم | T17: حزيران 2022
B18: احمد حرب | C18: 25000 | D18: 25000 | O18: 50000 | P18: =300000-O18 -> 250000 | T18: تموز 2022
A19: ارضي | C19: 25000 | D19: 25000 | E19: 25000 | F19: 25000 | O19: 100000 | P19: =300000-O19 -> 200000 | Q19: حسن عواضة شهرين 2014 | T19: آب 2022
A20: المحلات | B20: الفرن | F20: ترك | G20: ترك | H20: ترك | I20: ترك | J20: ترك | K20: ترك | L20: ترك | M20: ترك | N20: ترك | O20: 0 | P20: =120000-O20 -> 120000 | R20: بالدولار | T20: ايلول 2022
O21: 0 | P21: 0 | R21: =P22/1500 -> 3643.333333 | T21: تشرين الأول 2022
A22: المجموع العام | C22: =SUM(C4:C21) -> 410000 | D22: =SUM(D4:D21) -> 375000 | E22: 25000 | F22: 25000 | G22: 0 | H22: 0 | I22: 0 | J22: 0 | K22: 0 | L22: 0 | M22: 0 | N22: 0 | O22: 835000 | P22: =SUM(P4:P21) -> 5465000 | T22: تشرين الثاني 2022
H23: مجموع المحصــل: | J23: =NoToTxt(O2221,"ليرة لبنانية","قرشا") ->  | T23: كانون الأول 2022
H24: مجموع المتأحرات: | J24: =NoToTxt(P22,"ليرة لبنانية","قرشا") -> 
